bitfinex/quotes_ETHUSD_20250909
["timestamp","ask_amount","ask_price","bid_price","bid_amount"]
[1757399400073,1.9879,4344.0,4343.8,0.002]
[1757399400505,0.1144,4344.0,4343.9,2.30207877]
[1757399400711,0.1144,4344.0,4343.8,0.002]
[1757399400977,0.001,4344.3,4344.2,2.3019198]
[1757399402110,0.001,4344.3,4344.1,2.30196169]
[1757399402273,0.001,4344.3,4344.2,2.6000198]
[1757399402469,0.001,4344.3,4344.2,5.6000198]
[1757399407415,0.001,4344.3,4344.2,6.7740198]
[1757399407631,0.001,4344.3,4344.2,7.5660198]
[1757399408933,0.025,4344.8,4344.2,7.5660198]
[1757399409120,0.025,4344.8,4344.7,2.41605488]
[1757399409306,0.025,4344.8,4344.7,6.29705488]
[1757399409512,0.025,4344.8,4344.7,6.87595488]
[1757399411505,0.025,4344.8,4344.7,10.66795488]
[1757399411921,0.025,4344.8,4344.7,10.38715488]
[1757399414626,0.025,4344.8,4344.7,10.66795488]
[1757399414828,0.025,4344.8,4344.7,11.38265488]
[1757399415247,0.025,4344.8,4344.7,10.66795488]
[1757399416039,0.025,4344.8,4344.7,11.38265488]
[1757399418162,0.025,4344.8,4344.7,10.66795488]
[1757399418661,0.025,4344.8,4344.7,5.41605488]
[1757399418868,2.4644,4344.8,4344.7,0.1144]
[1757399419200,2.71484,4344.8,4344.7,2.41605488]
[1757399419333,2.4644,4344.8,4344.7,2.41605488]
[1757399420450,2.4644,4344.8,4344.7,6.29505488]
[1757399420651,2.4644,4344.8,4344.7,3.9934]
[1757399420852,2.4644,4344.8,4344.7,0.1144]
[1757399421377,2.4644,4344.8,4344.7,2.41605488]
[1757399422471,1.7194,4344.8,4344.7,2.41605488]
[1757399422767,0.025,4344.8,4344.7,2.41605488]
[1757399422997,0.025,4344.8,4344.7,5.71415488]
[1757399423196,0.025,4344.8,4344.7,5.41605488]
[1757399425102,0.026,4344.8,4344.7,5.41605488]
[1757399425257,0.026,4344.8,4344.7,5.71415488]
[1757399425466,0.026,4344.8,4344.7,5.41605488]
[1757399425668,2.4654,4344.8,4344.7,5.41605488]
[1757399426976,2.71594,4344.8,4344.3,0.002]
[1757399427292,5.01758656,4344.8,4344.3,0.002]
[1757399428609,5.01754808,4344.8,4344.3,0.002]
[1757399428813,5.01754808,4344.8,4344.0,5.10602318]
[1757399429105,4.93702906,4344.7,4344.0,2.804]
[1757399429307,2.63535481,4344.7,4343.9,2.30206967]
[1757399429492,2.1296,4344.6,4343.8,0.002]
[1757399429695,2.1296,4344.6,4343.9,3.877]
[1757399429995,2.1296,4344.6,4344.3,2.30183621]
[1757399430181,0.3098,4344.4,4344.3,2.30183621]
[1757399430930,1.7204,4344.8,4344.3,3.2981]
[1757399431232,2.1556,4344.8,4344.3,3.2981]
[1757399431747,2.1556,4344.8,4344.7,2.30165488]
[1757399431930,2.4425,4344.8,4344.7,2.30165488]
[1757399432093,0.026,4344.8,4344.7,2.30165488]
[1757399433107,2.5822,4344.8,4344.7,2.30165488]
[1757399434333,0.026,4344.8,4344.7,5.60965488]
[1757399435235,0.026,4344.8,4344.7,9.48665488]
[1757399437233,0.026,4344.8,4344.7,9.60105488]
[1757399439568,0.026,4344.8,4344.7,10.67385488]
[1757399439772,0.026,4344.8,4344.7,11.34645488]
[1757399439970,0.026,4344.8,4344.7,13.66302102]
[1757399440273,0.026,4344.8,4344.7,15.42902102]
[1757399440641,0.026,4344.8,4344.7,15.65942102]
[1757399441058,0.026,4344.8,4344.7,14.98682102]
[1757399441337,0.026,4344.8,4344.7,13.13009636]
[1757399442100,0.04,4344.9,4344.7,13.13009636]
[1757399442300,1.8317,4345.8,4345.7,2.30112525]
[1757399442524,2.5812,4345.8,4345.7,5.30112525]
[1757399442801,2.5812,4345.8,4345.7,3.0]
[1757399443321,2.5812,4345.8,4344.9,0.792]
[1757399443322,2.84332,4345.8,4345.3,3.875]
[1757399443466,2.84332,4345.8,4345.3,3.0]
[1757399443467,2.2693,4345.7,4345.3,3.0]
[1757399443795,0.57402,4345.8,4345.3,2.30133707]
[1757399443796,0.2869,4345.4,4345.3,2.30133707]
[1757399444117,2.5562,4345.4,4345.3,3.0]
[1757399444535,2.5562,4345.4,4345.3,5.30133707]
[1757399444694,0.025,4345.8,4345.3,5.30133707]
[1757399444695,0.001,4345.7,4345.4,2.30127081]
[1757399444900,0.2869,4345.5,4345.4,6.17627081]
[1757399445112,2.5562,4345.5,4345.4,6.17627081]
[1757399446175,2.5562,4345.5,4345.4,3.875]
[1757399446790,2.81442,4345.5,4345.4,3.875]
[1757399448194,2.81442,4345.5,4345.3,3.874]
[1757399448378,2.2693,4345.4,4345.3,3.874]
[1757399448580,2.5562,4345.4,4345.3,6.874]
[1757399449558,2.5562,4345.4,4345.3,6.774]
[1757399449722,2.5562,4345.4,4345.3,9.07533707]
[1757399449921,2.5562,4345.4,4345.3,6.774]
[1757399450229,0.001,4345.7,4345.4,2.30123127]
[1757399450383,0.001,4345.7,4345.6,0.308]
[1757399450725,0.001,4345.7,4345.5,3.874]
[1757399450726,1.8067,4345.6,4345.5,3.874]
[1757399450887,2.5562,4345.6,4345.5,3.874]
[1757399451309,2.5562,4345.6,4345.5,6.17523115]
[1757399451616,2.5562,4345.6,4345.4,6.17527086]
[1757399451787,0.4626,4345.5,4345.4,6.17527086]
[1757399451986,0.7495,4345.5,4345.4,6.17527086]
[1757399452181,0.7495,4345.5,4345.4,3.874]
[1757399452382,2.5562,4345.5,4345.4,3.874]
[1757399453815,2.5562,4345.5,4345.4,6.17528411]
[1757399454093,2.5562,4345.5,4345.4,3.874]
[1757399456098,2.5562,4345.5,4345.3,6.873]
[1757399456300,2.2693,4345.4,4345.3,6.873]
[1757399456611,2.5562,4345.4,4345.3,6.873]
[1757399457839,2.5562,4345.4,4345.3,3.0]
[1757399458043,2.81192,4345.4,4345.3,3.0]
[1757399460239,2.5562,4345.4,4345.3,3.0]
[1757399461417,2.5562,4345.4,4345.3,5.30133707]
[1757399461622,1.7071,4345.7,4345.3,3.0]
[1757399461871,1.7061,4345.6,4345.5,2.30123115]
[1757399462062,2.455,4345.6,4345.4,2.30128252]
[1757399462359,0.001,4345.7,4345.3,3.0]
[1757399462561,0.001,4345.7,4345.4,2.30123492]
[1757399462748,0.23552,4345.7,4345.4,2.30128411]
[1757399462950,0.23552,4345.7,4345.5,2.30122364]
[1757399463364,0.001,4345.7,4345.5,2.30123115]
[1757399464275,0.001,4345.7,4345.4,3.872]
[1757399464575,0.001,4345.7,4345.6,2.6045782]
[1757399465376,0.001,4345.7,4345.6,0.3034]
[1757399465877,0.001,4345.7,4345.6,2.3011782]
[1757399466236,0.001,4345.7,4345.6,9.4755782]
[1757399466469,0.001,4345.7,4345.6,9.5899782]
[1757399467036,0.001,4345.7,4345.6,9.8707782]
[1757399468858,0.001,4345.7,4345.6,9.5899782]
[1757399476307,0.001,4345.7,4345.6,10.3819782]
[1757399476515,0.025,4345.8,4345.7,6.09312525]
[1757399476957,0.025,4345.8,4345.7,7.26992525]
[1757399477476,0.025,4345.8,4345.7,8.89465417]
[1757399478220,0.025,4346.8,4346.7,2.30059585]
[1757399478419,0.025,4346.8,4346.7,9.16959585]
[1757399479480,0.025,4346.8,4346.7,9.47299585]
[1757399479984,0.025,4346.8,4346.7,9.16959585]
[1757399481182,0.025,4346.8,4346.7,9.47299585]
[1757399481880,0.025,4346.8,4346.7,10.26499585]
[1757399482181,0.025,4346.8,4346.7,10.85759585]
[1757399482381,1.7311,4347.8,4347.7,2.3000667]
[1757399482583,2.0213,4347.8,4347.7,6.1680667]
[1757399482783,2.48,4347.8,4347.7,6.1680667]
[1757399483083,1.7311,4347.8,4347.7,6.1680667]
[1757399483647,2.48,4347.8,4347.7,6.1680667]
[1757399484081,2.48,4347.8,4347.7,3.868]
[1757399484283,2.48,4347.8,4347.7,6.1680667]
[1757399484483,2.48,4347.8,4347.7,3.868]
[1757399484682,2.48,4347.8,4347.7,6.1680667]
[1757399484983,2.48,4347.8,4347.7,3.868]
[1757399485191,2.48,4347.8,4347.7,6.1680667]
[1757399487449,0.025,4347.8,4347.7,9.4714667]
[1757399488387,0.025,4347.8,4347.7,9.5858667]
[1757399489157,0.025,4347.8,4347.7,10.2634667]
[1757399489355,0.025,4347.8,4347.7,10.3778667]
[1757399491758,0.025,4347.8,4347.7,10.6586667]
[1757399492451,0.025,4347.8,4347.7,11.34840036]
[1757399492675,0.025,4347.8,4347.7,11.06760036]
[1757399492873,0.025,4347.8,4347.7,11.94100036]
[1757399495702,0.025,4347.8,4347.7,11.57880036]
[1757399495902,0.025,4347.8,4347.7,12.17140036]
[1757399497195,0.025,4347.8,4347.7,11.57880036]
[1757399497774,0.025,4347.8,4347.7,45.80880036]
[1757399498302,0.025,4347.8,4347.7,41.57880036]
[1757399498506,0.025,4347.8,4347.7,41.29800036]
[1757399499017,1e-08,4347.9,4347.8,6.3224138]
[1757399499415,1e-08,4348.2,4348.1,6.3222551]
[1757399499621,1e-08,4348.2,4348.1,12.0116551]
[1757399499923,1e-08,4348.2,4348.1,12.1260551]
[1757399500910,1e-08,4348.2,4348.1,42.1260551]
[1757399501285,1e-08,4348.2,4348.1,42.2420551]
[1757399501493,1.255,4348.8,4348.6,0.792]
[1757399501781,1.255,4348.8,4348.7,9.95553779]
[1757399501991,3.17,4348.8,4348.7,6.09153779]
[1757399502200,3.609,4348.8,4348.7,9.95553779]
[1757399502830,3.609,4348.8,4348.7,5.29953779]
[1757399503015,3.609,4348.8,4348.7,9.16353779]
[1757399504147,3.609,4348.8,4348.7,6.864]
[1757399504351,3.609,4348.8,4348.7,9.16353779]
[1757399505920,3.609,4348.8,4348.7,6.864]
[1757399506237,3.609,4348.8,4348.7,9.16353779]
[1757399506556,3.609,4348.8,4348.7,6.864]
[1757399507309,3.9739,4348.8,4348.7,6.863]
[1757399507507,3.9739,4348.8,4348.1,4.06484544]
[1757399507731,3.9739,4348.8,4348.2,3.863]
[1757399507732,2.0625,4348.7,4348.2,3.863]
[1757399508043,0.2915,4348.3,4348.1,1.765]
[1757399508556,2.0625,4348.2,4348.0,3.863]
[1757399508854,0.5269,4348.3,4347.9,3.863]
[1757399508855,2.354,4348.1,4347.9,3.863]
[1757399509008,2.0625,4348.0,4347.9,3.863]
[1757399509213,2.354,4348.0,4347.9,3.863]
[1757399509408,2.354,4348.0,4347.8,3.863]
[1757399509613,2.0625,4347.9,4347.8,3.0]
[1757399509817,2.5894,4347.9,4347.3,1.765]
[1757399510041,2.5894,4347.9,4346.8,0.027]
[1757399510042,2.30018869,4347.5,4346.8,0.027]
[1757399510224,4.302,4347.8,4346.9,3.822]
[1757399510552,0.2915,4347.0,4346.9,9.12249]
[1757399510746,2.354,4347.0,4346.9,6.822]
[1757399512711,2.354,4347.0,4346.9,9.12249]
[1757399513761,2.354,4347.0,4346.9,6.822]
[1757399514294,2.354,4347.0,4346.9,9.12249]
[1757399514615,2.354,4347.0,4346.9,6.822]
[1757399515955,2.354,4347.0,4346.8,0.027]
[1757399516295,0.2354,4346.9,4346.8,0.027]
[1757399516590,2.53589,4346.9,4346.8,0.027]
[1757399516892,4.88989,4346.9,4346.8,0.027]
[1757399520692,8.75289,4346.9,4346.8,0.027]
[1757399523214,4.88989,4346.9,4346.8,0.027]
[1757399523390,8.75289,4346.9,4346.8,0.027]
[1757399524006,4.88989,4346.9,4346.8,0.027]
[1757399524210,0.1144,4347.0,4346.8,0.3268]
[1757399524721,1.8794,4347.3,4346.8,0.027]
[1757399524897,2.0517,4347.2,4346.8,0.027]
[1757399525319,2.0517,4347.1,4346.8,0.027]
[1757399525914,2.0517,4347.0,4346.8,0.027]
[1757399526121,0.2904,4346.9,4346.8,2.32754292]
[1757399526417,2.3421,4346.9,4346.8,0.027]
[1757399526821,2.57631,4346.9,4346.8,0.027]
[1757399527484,2.3421,4346.9,4346.8,0.027]
[1757399528286,4.64259,4346.9,4346.8,0.027]
[1757399533662,8.50559,4346.9,4346.8,0.027]
[1757399534426,1.902,4346.9,4346.8,0.027]
[1757399534627,3.863,4346.9,4346.8,0.027]
[1757399534873,4.06527897,4347.3,4346.8,0.3268]
[1757399534874,1.765,4347.3,4346.8,0.3268]
[1757399535070,0.1144,4347.1,4346.8,0.3268]
[1757399535570,0.1144,4347.1,4347.0,2.30043708]
[1757399535732,0.1144,4347.1,4347.0,2.60023708]
[1757399535935,0.1144,4347.1,4347.0,0.2998]
[1757399536146,0.1144,4347.1,4346.8,0.027]
[1757399536729,0.1144,4347.1,4346.8,2.32753442]
[1757399536930,0.1144,4347.1,4346.9,2.30048916]
[1757399537629,0.1144,4347.1,4346.8,0.027]
[1757399537630,0.1144,4347.1,4347.0,0.2998]
[1757399537835,2.0164,4347.1,4346.8,0.027]
[1757399538038,4.35213708,4347.0,4346.8,0.027]
[1757399538233,6.16249,4346.9,4346.8,0.027]
[1757399538572,6.45289,4346.9,4346.8,0.027]
[1757399538957,8.50459,4346.9,4346.8,0.027]
[1757399540180,6.2041,4346.9,4346.8,0.027]
[1757399540370,3.862,4346.9,4346.8,0.027]
[1757399540968,4.1524,4346.9,4346.8,0.027]
[1757399541167,6.2041,4346.9,4346.8,0.027]
[1757399541369,7.30137836,4346.9,4346.8,0.027]
[1757399542383,0.58784,4347.1,4346.8,0.3268]
[1757399542746,3.862,4347.0,4346.8,0.3268]
[1757399543276,0.2904,4346.9,4346.8,0.027]
[1757399543871,2.3421,4346.9,4346.8,0.027]
[1757399544390,3.862,4347.0,4346.8,0.027]
[1757399544683,3.862,4347.0,4346.8,0.3268]
[1757399547594,3.862,4347.0,4346.8,0.027]
[1757399547806,5.9137,4347.0,4346.8,0.027]
[1757399548110,0.2904,4346.9,4346.8,0.027]
[1757399548335,5.9137,4347.0,4346.8,0.027]
[1757399548452,2.0517,4347.0,4346.8,0.027]
[1757399548656,3.862,4346.9,4346.8,0.027]
[1757399549860,3.8177,4347.2,4346.8,0.027]
[1757399550090,3.862,4347.1,4346.8,0.027]
[1757399550396,5.9137,4347.1,4346.8,0.027]
[1757399550598,2.0517,4347.0,4346.8,0.027]
[1757399550783,3.862,4346.9,4346.8,0.027]
[1757399551374,6.2264,4346.9,4346.8,0.027]
[1757399552114,5.4815,4346.9,4346.8,0.027]
[1757399552415,5.7845,4346.9,4346.8,0.027]
[1757399553105,3.862,4346.9,4346.8,0.3319]
[1757399554005,3.861,4346.9,4346.8,0.3319]
[1757399554659,3.861,4346.9,4346.8,2.63244292]
[1757399554854,1.766,4347.2,4346.8,2.63244292]
[1757399555089,3.861,4347.1,4346.9,2.30047832]
[1757399555505,1.766,4347.2,4347.1,2.30038416]
[1757399555673,5.627,4347.2,4347.1,0.3049]
[1757399556357,5.627,4347.2,4347.1,2.60528416]
[1757399556610,0.1144,4347.3,4347.1,0.3049]
[1757399556777,3.861,4347.2,4347.1,2.60528416]
[1757399558329,3.861,4347.2,4346.8,0.027]
[1757399558875,5.9224,4347.2,4346.9,2.30047584]
[1757399559115,2.0614,4347.2,4346.9,2.30047584]
[1757399559610,2.0614,4347.2,4346.8,0.027]
[1757399559924,2.0614,4347.2,4346.9,2.30049]
[1757399560425,0.303,4347.0,4346.8,0.027]
[1757399560585,0.1144,4346.9,4346.8,0.027]
[1757399560783,2.1758,4346.9,4346.8,0.027]
[1757399560983,2.4788,4346.9,4346.8,2.32754292]
[1757399561616,0.1144,4346.9,4346.8,0.027]
[1757399561818,2.4788,4346.9,4346.8,0.027]
[1757399562501,2.4788,4346.9,4346.8,2.32754292]
[1757399563037,0.1144,4346.9,4346.8,2.32754292]
[1757399563235,0.1144,4346.9,4346.8,0.3319]
[1757399563397,2.4788,4346.9,4346.8,0.027]
[1757399563827,2.4788,4346.9,4346.8,2.32754292]
[1757399564031,2.4788,4346.9,4346.8,0.027]
[1757399564699,5.41327,4346.9,4346.8,0.027]
[1757399564917,3.11278,4346.9,4346.8,0.027]
[1757399565326,5.41327,4346.9,4346.8,0.027]
[1757399565638,3.11278,4346.9,4346.8,0.027]
[1757399565800,5.41327,4346.9,4346.8,0.027]
[1757399569934,9.27327,4346.9,4346.8,0.027]
[1757399577105,6.97278,4346.9,4346.8,0.027]
[1757399577401,9.27327,4346.9,4346.8,0.027]
[1757399583590,9.27947,4346.9,4346.8,0.027]
[1757399586807,5.41947,4346.9,4346.8,0.027]
[1757399587011,9.27847,4346.9,4346.8,0.027]
[1757399588084,10.07047,4346.9,4346.8,0.027]
[1757399588790,13.17112699,4346.9,4346.8,1e-08]
[1757399589306,15.59312699,4346.9,4346.8,1e-08]
[1757399590483,16.08857959,4346.9,4346.8,1e-08]
[1757399590921,12.22957959,4346.9,4346.8,1e-08]
[1757399591073,15.59312699,4346.9,4346.8,1e-08]
[1757399591274,11.73412699,4346.9,4346.8,1e-08]
[1757399591473,15.59312699,4346.9,4346.8,1e-08]
[1757399591980,11.73412699,4346.9,4346.8,1e-08]
[1757399592180,15.59312699,4346.9,4346.8,1e-08]
[1757399593207,15.59312699,4346.9,4346.8,0.00200001]
[1757399594928,16.08825032,4346.9,4346.8,0.00200001]
[1757399595711,12.22925032,4346.9,4346.8,0.00200001]
[1757399595913,16.08825032,4346.9,4346.8,0.00200001]
[1757399597111,15.59312699,4346.9,4346.8,0.00200001]
[1757399599011,5.86402699,4346.9,4346.8,0.00200001]
[1757399599211,10.17112699,4346.9,4346.8,0.00200001]
[1757399599439,13.17112699,4346.9,4346.8,0.00200001]
[1757399600245,9.31212699,4346.9,4346.8,0.00200001]
[1757399600441,13.17112699,4346.9,4346.8,0.00200001]
[1757399601466,7.24452699,4346.9,4346.8,0.00200001]
[1757399601764,13.06432699,4346.9,4346.8,0.00200001]
[1757399602467,13.0640098,4346.9,4346.8,0.00200001]
[1757399603628,12.84927,4346.9,4346.8,0.00200001]
[1757399604152,13.06403007,4346.9,4346.8,0.00200001]
[1757399604364,15.48503007,4346.9,4346.8,0.00200001]
[1757399605061,15.27027,4346.9,4346.8,0.00200001]
[1757399605249,15.48506504,4346.9,4346.8,0.00200001]
[1757399611289,11.62606504,4346.9,4346.8,0.00200001]
[1757399611526,15.48406504,4346.9,4346.8,0.00200001]
[1757399612034,15.48430947,4346.9,4346.8,0.00200001]
[1757399612921,10.87520947,4346.9,4346.8,0.00200001]
[1757399613074,13.22050947,4346.9,4346.8,0.00200001]
[1757399613400,20.49558692,4346.9,4346.8,0.00200001]
[1757399613807,22.54248692,4346.9,4346.8,0.00200001]
[1757399614008,22.54348692,4346.9,4346.8,0.00200001]
[1757399614214,23.03914362,4346.9,4346.8,0.00200001]
[1757399614390,23.33524362,4346.9,4346.8,0.00200001]
[1757399614590,10.80050947,4346.9,4346.8,0.00200001]
[1757399614788,6.15050947,4346.9,4346.8,0.31690001]
[1757399614989,2.30149,4346.9,4346.8,0.31690001]
[1757399615189,6.15949,4346.9,4346.8,0.59770001]
[1757399615492,2.30149,4346.9,4346.8,0.59770001]
[1757399615691,6.15949,4346.9,4346.8,0.59770001]
[1757399616305,2.30149,4346.9,4346.8,0.59770001]
[1757399616488,6.15949,4346.9,4346.8,0.00200001]
[1757399616808,7.22907795,4346.9,4346.8,0.00200001]
[1757399617312,6.79617795,4346.9,4346.8,0.00200001]
[1757399617499,6.79617795,4346.9,4346.8,0.31690001]
[1757399618608,6.79617795,4346.9,4346.8,0.59770001]
[1757399618919,6.79617795,4346.9,4346.8,0.31690001]
[1757399619900,6.79517795,4346.9,4346.8,0.31690001]
[1757399622523,2.30149,4346.9,4346.8,0.92160001]
[1757399622825,3.858,4346.9,4346.8,0.92160001]
[1757399623307,0.001,4346.9,4346.8,0.92160001]
[1757399624036,3.858,4346.9,4346.8,3.22214293]
[1757399624391,0.001,4346.9,4346.8,3.22214293]
[1757399624639,3.858,4346.9,4346.8,3.22214293]
[1757399625334,3.858,4346.9,4346.8,6.22214293]
[1757399625533,0.001,4346.9,4346.8,6.22214293]
[1757399628082,0.001,4346.9,4346.8,3.92160001]
[1757399628376,0.001,4346.9,4346.8,6.22214293]
[1757399629079,0.001,4346.9,4346.8,3.31690001]
[1757399629375,0.001,4346.9,4346.8,3.59770001]
[1757399631368,0.001,4346.9,4346.8,5.89824293]
[1757399631551,0.001,4346.9,4346.8,3.59770001]
[1757399631939,0.001,4346.9,4346.8,3.31690001]
[1757399632149,0.001,4346.9,4346.8,3.59770001]
[1757399632351,0.001,4346.9,4346.8,5.89824293]
[1757399632674,0.001,4346.9,4346.8,6.22214293]
[1757399633986,0.11419921,4347.3,4347.0,2.30042856]
[1757399634152,0.1144,4347.3,4347.0,2.30042856]
[1757399634473,0.1144,4347.3,4347.2,0.3149]
[1757399637075,0.1144,4347.3,4347.2,2.89603124]
[1757399637279,0.001,4347.4,4347.3,2.30027833]
[1757399637653,0.001,4347.4,4347.3,0.5957]
[1757399637982,0.001,4347.4,4347.3,2.89597833]
[1757399638279,0.001,4347.4,4347.3,2.61517833]
[1757399639283,0.001,4347.4,4347.3,2.89597833]
[1757399639881,0.001,4347.4,4347.3,2.61517833]
[1757399640084,0.001,4347.4,4347.3,5.61517833]
[1757399640445,0.001,4347.4,4347.3,3.3149]
[1757399641061,0.001,4347.4,4347.3,5.61517833]
[1757399644353,0.001,4347.4,4347.3,3.3149]
[1757399644553,0.001,4347.4,4347.3,5.61517833]
[1757399645267,0.001,4347.4,4347.3,3.3149]
[1757399645468,0.001,4347.4,4347.3,3.0]
[1757399648358,0.001,4347.4,4347.3,5.30027833]
[1757399648953,0.001,4347.4,4347.3,5.59637833]
[1757399651226,0.001,4347.4,4347.3,5.59837833]
[1757399653509,0.001,4347.4,4347.3,3.2981]
[1757399653715,0.001,4347.4,4347.3,3.002]
[1757399654824,0.4642,4347.4,4347.3,3.002]
[1757399655025,0.001,4347.4,4347.3,3.002]
[1757399655433,0.001,4347.4,4347.3,5.59837833]
[1757399657749,0.001,4347.4,4347.3,5.71277833]
[1757399657973,0.001,4347.4,4347.3,6.25847833]
[1757399658857,0.001,4347.4,4347.3,6.37591258]
[1757399660456,4.586,4348.8,4347.3,6.37591258]
[1757399660457,10.69545771,4350.8,4347.4,37.596]
[1757399660715,2.5,4350.9,4350.7,0.792]
[1757399660948,2.5,4350.9,4350.8,45.46393927]
[1757399661086,0.07253942,4350.9,4350.8,46.25593927]
[1757399661290,0.07253942,4350.9,4350.8,43.78728807]
[1757399661615,0.07253942,4350.9,4350.8,42.89113485]
[1757399662004,0.07253942,4350.9,4350.8,43.71520872]
[1757399662927,0.07253942,4350.9,4350.8,42.89113485]
[1757399663130,0.07253942,4350.9,4350.8,44.09552936]
[1757399664326,0.07253942,4350.9,4350.8,42.89113485]
[1757399664899,0.07253942,4350.9,4350.8,13.42508418]
[1757399665102,0.07253942,4350.9,4350.8,12.62323485]
[1757399665645,0.07253942,4350.9,4350.8,12.88813485]
[1757399666154,0.07253942,4350.9,4350.8,13.22366198]
[1757399666894,0.07253942,4350.9,4350.8,13.22566198]
[1757399667120,0.07253942,4350.9,4350.8,12.62523485]
[1757399667706,0.07253942,4350.9,4350.8,12.62365598]
[1757399669448,0.07253942,4350.9,4350.8,12.34385598]
[1757399670444,0.07253942,4350.9,4350.8,12.45825598]
[1757399670844,0.07353942,4350.9,4350.8,12.45825598]
[1757399672055,0.07353942,4350.9,4350.8,7.38615598]
[1757399672257,2.31523942,4350.9,4350.8,11.36115598]
[1757399672751,1.85493942,4350.9,4350.8,11.36115598]
[1757399672952,0.07353942,4350.9,4350.8,11.36115598]
[1757399673260,0.07353942,4350.9,4350.8,12.46675598]
[1757399673634,0.07353942,4350.9,4350.8,12.15315598]
[1757399673832,0.37083942,4350.9,4350.8,11.36115598]
[1757399674037,2.31523942,4350.9,4350.8,11.35915598]
[1757399674536,0.07353942,4350.9,4350.8,11.35915598]
[1757399675536,0.07353942,4350.9,4350.8,12.46475598]
[1757399677341,0.07353942,4350.9,4350.8,12.15115598]
[1757399677550,2.31523942,4350.9,4350.8,12.14615598]
[1757399678361,2.31523942,4350.9,4350.8,11.35415598]
[1757399679246,0.07353942,4350.9,4350.8,7.38615598]
[1757399679567,0.07353942,4350.9,4350.8,11.35415598]
[1757399679769,0.07353942,4350.9,4350.8,11.66775598]
[1757399680847,0.07353942,4350.9,4350.8,12.45975598]
[1757399683374,0.001,4351.4,4351.3,2.29816376]
[1757399683576,0.001,4351.4,4351.3,6.58089187]
[1757399683773,0.001,4351.4,4351.3,6.89449187]
[1757399684583,0.001,4351.4,4351.3,10.68649187]
[1757399685108,0.001,4351.4,4351.3,11.28726907]
[1757399685478,0.001,4351.4,4351.3,10.68649187]
[1757399686078,0.001,4351.4,4351.3,11.28825725]
[1757399686273,0.001,4351.4,4351.3,10.68649187]
[1757399686690,0.001,4351.4,4351.3,11.4883412]
[1757399686895,0.001,4351.4,4351.3,10.68649187]
[1757399687922,0.001,4351.4,4351.3,10.57209187]
[1757399688112,0.001,4351.4,4351.3,10.68649187]
[1757399688835,0.001,4351.4,4351.3,10.47816376]
[1757399690542,0.001,4351.4,4351.3,10.47116376]
[1757399692457,1.4851,4351.4,4351.3,5.41256376]
[1757399692666,1.4851,4351.4,4351.3,9.36356376]
[1757399693105,0.001,4351.4,4351.3,10.15556376]
[1757399694329,0.001,4351.4,4351.3,10.04116376]
[1757399694533,0.001,4351.4,4351.3,10.15556376]
[1757399698107,0.001,4351.4,4351.3,7.8574]
[1757399698309,0.001,4351.4,4351.3,11.91256376]
[1757399703052,1.6391,4351.4,4351.3,11.91256376]
[1757399703468,1.6391,4351.4,4351.3,11.90756376]
[1757399704106,1.6391,4351.4,4351.3,7.17556376]
[1757399704273,1.6391,4351.4,4351.3,11.11556376]
[1757399704472,0.001,4351.4,4351.3,11.90756376]
[1757399707324,5.73968706,4351.7,4351.4,6.09011095]
[1757399707470,5.73968706,4351.7,4351.6,2.02402537]
[1757399707669,5.73968706,4351.7,4351.6,8.2284307]
[1757399708125,5.73868706,4351.7,4351.6,8.2284307]
[1757399708417,0.025,4351.8,4351.7,2.29795252]
[1757399708573,0.025,4351.8,4351.7,10.02795252]
[1757399709064,0.025,4351.8,4351.7,10.71699231]
[1757399711449,0.025,4351.8,4351.7,10.71399231]
[1757399711610,1.6631,4351.8,4351.7,9.92199231]
[1757399712419,1.6631,4351.8,4351.7,9.92099231]
[1757399712712,1.6631,4351.8,4351.7,10.71299231]
[1757399713735,1.6631,4351.8,4351.7,14.94299231]
[1757399713906,0.025,4351.8,4351.7,14.93999231]
[1757399714434,0.025,4351.8,4351.7,14.25095252]
[1757399714940,0.025,4351.8,4351.7,40.02095252]
[1757399715146,0.025,4351.8,4351.7,46.27497789]
[1757399715641,0.025,4351.8,4351.7,16.27497789]
[1757399716325,1e-08,4351.8,4351.7,12.04497789]
[1757399716956,1e-08,4351.8,4351.7,10.02095252]
[1757399717160,1e-08,4351.8,4351.7,14.25095252]
[1757399720887,1.6381,4353.1,4353.0,6.08926625]
[1757399721183,0.015,4353.4,4353.3,6.08910794]
[1757399721351,0.015,4353.4,4353.3,10.01410794]
[1757399721555,1.6531,4353.4,4353.3,10.01410794]
[1757399722595,1.6531,4353.4,4353.3,11.62746139]
[1757399722887,1.6531,4353.4,4353.3,11.62646139]
[1757399723037,1.6531,4353.4,4353.3,5.53735345]
[1757399723378,1.6531,4353.4,4353.3,7.43134258]
[1757399723538,1.6531,4353.4,4353.3,5.13523606]
[1757399723740,1.6531,4353.4,4353.3,10.432344]
[1757399724062,1.6531,4353.4,4353.3,10.01410794]
[1757399726209,1.6531,4353.4,4353.3,11.62746139]
[1757399726417,1.6531,4353.4,4353.3,10.01410794]
[1757399728019,0.015,4353.4,4353.3,11.62746139]
[1757399728260,0.015,4353.4,4353.3,10.64997605]
[1757399728870,7.38,4354.1,4354.0,3.08873863]
[1757399729068,6.70664114,4354.1,4354.0,11.77573863]
[1757399729275,6.70664114,4354.1,4354.0,13.38385526]
[1757399729474,6.70664114,4354.1,4354.0,43.38385526]
[1757399729707,1e-08,4354.1,4354.0,41.77573863]
[1757399730330,1e-08,4354.1,4354.0,43.38296487]